bitfinex/quotes_BTCUSD_20240906
["timestamp","ask_amount","ask_price","bid_price","bid_amount"]
[1725628211869,0.01840008,56837.0,56827.0,0.175972]
[1725628211870,0.175961,56831.0,56827.0,0.175972]
[1725628212132,0.175961,56831.0,56821.0,0.1303]
[1725628212133,0.175963,56831.0,56823.0,0.351969]
[1725628212339,0.175961,56831.0,56827.0,0.17597]
[1725628212549,0.35191,56833.0,56825.0,0.351954]
[1725628212768,0.175968,56829.0,56825.0,0.175977]
[1725628212983,0.528498,56835.0,56817.0,0.176002]
[1725628212984,0.1427,56826.0,56817.0,0.176002]
[1725628213184,0.57756489,56824.0,56819.0,0.175996]
[1725628213413,0.175991,56822.0,56817.0,0.176002]
[1725628213635,0.175996,56820.0,56814.0,0.352021]
[1725628213842,0.2531843,56824.0,56811.0,0.3162]
[1725628214069,0.22560089,56816.0,56805.0,0.1442]
[1725628214275,0.22560089,56812.0,56809.0,0.176027]
[1725628214493,0.22560089,56812.0,56801.0,0.524105]
[1725628214494,0.39510089,56812.0,56804.0,0.352087]
[1725628214705,0.176026,56810.0,56805.0,0.176038]
[1725628214914,0.352045,56811.0,56805.0,0.176039]
[1725628215119,0.352024,56815.0,56800.0,0.1888]
[1725628215431,0.1315,56818.0,56815.0,0.176009]
[1725628215640,0.1315,56823.0,56805.0,0.22560089]
[1725628215862,0.1315,56823.0,56803.0,0.00352019]
[1725628215863,0.1,56822.0,56820.0,0.175993]
[1725628216117,0.1,56822.0,56819.0,0.01]
[1725628216334,0.1,56822.0,56819.0,0.175996]
[1725628216794,0.275988,56822.0,56819.0,0.175996]
[1725628217291,0.02758341,56824.0,56823.0,0.175985]
[1725628217505,0.02758341,56824.0,56821.0,0.175989]
[1725628217740,0.02758341,56824.0,56820.0,0.175992]
[1725628217952,0.02758341,56824.0,56822.0,0.175987]
[1725628218176,0.02758341,56824.0,56823.0,0.527955]
[1725628218656,0.1,56829.0,56823.0,0.35197]
[1725628218893,0.1,56829.0,56824.0,0.175981]
[1725628219337,0.477454,56833.0,56828.0,0.175968]
[1725628219555,0.37028708,56837.0,56829.0,0.175964]
[1725628219799,0.175951,56834.0,56828.0,0.175968]
[1725628220038,0.37028708,56837.0,56829.0,0.00932857]
[1725628220039,0.175955,56833.0,56829.0,0.00932857]
[1725628220503,0.01840008,56837.0,56829.0,0.00932857]
[1725628220740,0.01840008,56837.0,56834.0,0.175948]
[1725628221188,0.01840008,56837.0,56836.0,0.175944]
[1725628221431,0.01840008,56837.0,56835.0,0.00925533]
[1725628221642,0.01840008,56837.0,56836.0,0.00924313]
[1725628221859,1.715969,56837.0,56836.0,0.00924313]
[1725628222087,0.351933,56829.0,56821.0,0.351981]
[1725628222344,0.351928,56830.0,56821.0,0.17599]
[1725628222556,0.351928,56830.0,56819.0,0.1286]
[1725628222557,0.175977,56826.0,56822.0,0.00941404]
[1725628222807,0.175972,56827.0,56822.0,0.00941404]
[1725628223053,0.30037892,56831.0,56827.0,0.175971]
[1725628223285,0.30037892,56831.0,56823.0,0.00940183]
[1725628223286,0.175951,56834.0,56823.0,0.00940183]
[1725628223516,0.175955,56833.0,56828.0,0.175967]
[1725628223732,0.351889,56836.0,56829.0,0.175965]
[1725628223941,0.003,56837.0,56830.0,0.00351895]
[1725628224186,0.003,56837.0,56834.0,0.351896]
[1725628224400,0.00082,56848.0,56843.0,0.175921]
[1725628224614,0.00082,56848.0,56834.0,0.00351843]
[1725628224615,0.00082,56848.0,56835.0,0.00925533]
[1725628224912,0.00082,56848.0,56843.0,0.351844]
[1725628225329,0.176728,56848.0,56844.0,0.01371826]
[1725628225757,0.176728,56848.0,56843.0,0.175922]
[1725628225975,0.17673,56847.0,56845.0,0.01369995]
[1725628226219,0.17673,56847.0,56844.0,0.01371826]
[1725628226455,0.17673,56847.0,56845.0,0.01369995]
[1725628226456,0.00082,56847.0,56845.0,0.01369995]
[1725628226905,0.00082,56847.0,56843.0,0.175921]
[1725628227132,0.00082,56847.0,56846.0,0.01368165]
[1725628227380,0.00082,56847.0,56845.0,0.006]
[1725628227381,0.17673,56847.0,56845.0,0.006]
[1725628227601,0.00082,56847.0,56846.0,0.01368165]
[1725628227819,0.02839609,56847.0,56846.0,0.01368165]
[1725628228046,0.02839609,56847.0,56846.0,0.175913]
[1725628228287,0.02839609,56847.0,56846.0,0.01668165]
[1725628228758,0.02839609,56847.0,56846.0,0.19259465]
[1725628228985,0.02839609,56847.0,56846.0,0.33089465]
[1725628229214,0.02839609,56847.0,56846.0,0.85252165]
[1725628229420,0.00082,56847.0,56846.0,0.85252165]
[1725628230832,0.00082,56847.0,56846.0,0.85852165]
[1725628232016,0.880372,56847.0,56846.0,0.02268165]
[1725628232234,1.532093,56847.0,56846.0,0.009]
[1725628233638,1.232193,56847.0,56846.0,0.009]
[1725628233892,0.00082,56847.0,56846.0,0.009]
[1725628234141,0.00082,56847.0,56846.0,0.184913]
[1725628234381,0.00082,56847.0,56846.0,0.02268165]
[1725628234614,0.00082,56847.0,56846.0,0.19859465]
[1725628234842,0.0283913,56847.0,56846.0,0.55042165]
[1725628235758,0.00082,56847.0,56846.0,0.90224865]
[1725628236735,0.00082,56847.0,56846.0,0.55042165]
[1725628237177,0.00082,56847.0,56846.0,0.90224865]
[1725628237400,0.00082,56847.0,56846.0,0.55042165]
[1725628237637,0.00082,56847.0,56846.0,0.90224865]
[1725628237885,0.00082,56847.0,56846.0,0.55042165]
[1725628238319,0.00082,56847.0,56846.0,1.25407565]
[1725628238535,0.00082,56847.0,56846.0,0.90224865]
[1725628238783,0.00082,56847.0,56846.0,1.25407565]
[1725628239285,0.00082,56847.0,56846.0,0.90224865]
[1725628239956,0.00082,56847.0,56846.0,1.25407565]
[1725628240166,0.00082,56847.0,56846.0,0.90224865]
[1725628241471,0.00082,56847.0,56846.0,0.55042165]
[1725628241912,0.00082,56847.0,56846.0,0.90224865]
[1725628242832,0.00082,56847.0,56846.0,0.55042165]
[1725628243289,0.00082,56847.0,56846.0,0.90224865]
[1725628243971,0.00082,56847.0,56846.0,1.25407565]
[1725628244669,0.00082,56847.0,56846.0,1.42237565]
[1725628244876,0.00082,56847.0,56846.0,1.61488661]
[1725628245135,0.00082,56847.0,56846.0,1.63488661]
[1725628245369,0.00082,56856.0,56846.0,1.63488661]
[1725628245370,0.351684,56870.0,56846.0,0.40349261]
[1725628245590,0.351684,56870.0,56859.0,0.175873]
[1725628245805,0.000817,56864.0,56858.0,0.351748]
[1725628246040,0.000817,56864.0,56861.0,0.175866]
[1725628246255,0.176677,56864.0,56860.0,0.17587]
[1725628246476,0.176677,56864.0,56858.0,0.351748]
[1725628246477,0.000817,56864.0,56863.0,0.175861]
[1725628246973,0.000817,56864.0,56863.0,0.53752573]
[1725628247217,0.000817,56864.0,56863.0,0.88924773]
[1725628247413,0.000817,56864.0,56863.0,0.53752573]
[1725628247882,0.000817,56864.0,56863.0,0.88924773]
[1725628248097,0.528391,56864.0,56863.0,0.00994273]
[1725628248538,0.528391,56864.0,56856.0,0.351763]
[1725628248539,0.176675,56864.0,56859.0,0.175872]
[1725628248751,0.175871,56860.0,56854.0,0.351773]
[1725628248971,0.000817,56864.0,56860.0,0.00997931]
[1725628248972,0.175868,56861.0,56860.0,0.00997931]
[1725628249199,0.175868,56861.0,56857.0,0.175879]
[1725628249472,0.175868,56861.0,56860.0,0.00997931]
[1725628249662,0.175868,56861.0,56857.0,0.175879]
[1725628249947,0.175868,56861.0,56800.0,0.22620385]
[1725628249948,0.3052,56860.0,56840.0,0.0501]
[1725628250163,0.30037892,56853.0,56842.0,0.52650515]
[1725628250390,0.30037892,56849.0,56840.0,0.0501]
[1725628250842,0.175914,56846.0,56840.0,0.22603]
[1725628251066,0.516821,56848.0,56840.0,0.0501]
[1725628251301,0.175928,56842.0,56840.0,0.0501]
[1725628251527,0.35184,56844.0,56840.0,0.0501]
[1725628251769,0.527787,56841.0,56840.0,0.0501]
[1725628252051,1.387903,56841.0,56840.0,0.0501]
[1725628252276,1.387903,56841.0,56840.0,0.0521]
[1725628252515,1.387903,56841.0,56840.0,0.0501]
[1725628252738,1.387903,56841.0,56840.0,0.0551]
[1725628252962,1.387903,56841.0,56840.0,0.0501]
[1725628253648,1.52460893,56841.0,56840.0,0.0501]
[1725628253911,2.04529512,56841.0,56840.0,0.0501]
[1725628254120,2.13428919,56841.0,56840.0,0.0541]
[1725628254364,1.613603,56841.0,56840.0,0.0541]
[1725628254605,1.613603,56841.0,56840.0,0.0501]
[1725628255030,1.613603,56841.0,56840.0,0.0521]
[1725628255264,1.613603,56841.0,56840.0,0.0511]
[1725628255489,1.613603,56841.0,56840.0,0.0501]
[1725628255724,1.614603,56841.0,56840.0,0.0521]
[1725628255986,1.91498192,56841.0,56840.0,0.0511]
[1725628256209,1.91498192,56841.0,56840.0,0.0521]
[1725628257357,1.91398192,56841.0,56840.0,0.0511]
[1725628258279,1.91398192,56841.0,56840.0,0.0501]
[1725628258502,1.91498192,56841.0,56840.0,0.0501]
[1725628258758,1.91498192,56841.0,56840.0,0.0511]
[1725628261629,2.26883992,56841.0,56840.0,0.0511]
[1725628261851,2.30602704,56841.0,56840.0,0.0511]
[1725628262093,2.30402704,56841.0,56840.0,0.0511]
[1725628262845,1.91498192,56841.0,56840.0,0.0511]
[1725628263295,1.91498192,56841.0,56840.0,0.052732]
[1725628263296,2.26683992,56841.0,56840.0,0.052732]
[1725628263539,2.93107684,56841.0,56840.0,0.052732]
[1725628263762,2.93107684,56841.0,56805.0,0.52650515]
[1725628263763,0.30037892,56817.0,56805.0,0.52650515]
[1725628263995,0.01,56829.0,56805.0,0.52650515]
[1725628263996,0.176037,56806.0,56805.0,0.52650515]
[1725628264245,0.528112,56806.0,56805.0,0.52650515]
[1725628264480,0.528112,56806.0,56804.0,0.001634]
[1725628264481,0.17604,56805.0,56804.0,0.001634]
[1725628264724,0.528121,56805.0,56804.0,0.001634]
[1725628264949,0.176038,56806.0,56804.0,0.001634]
[1725628266164,0.17604,56805.0,56804.0,0.001634]
[1725628266871,0.17604,56806.0,56804.0,0.001634]
[1725628267360,0.528101,56808.0,56804.0,0.005634]
[1725628267586,0.35207,56807.0,56804.0,0.005634]
[1725628267810,0.176038,56806.0,56804.0,0.001634]
[1725628268058,0.17604,56805.0,56804.0,0.001634]
[1725628268286,0.17604,56805.0,56804.0,0.004634]
[1725628268511,0.176038,56806.0,56804.0,0.004634]
[1725628268766,0.176026,56810.0,56806.0,0.176036]
[1725628269474,0.176032,56808.0,56804.0,0.003634]
[1725628269719,0.1543,56817.0,56804.0,0.003634]
[1725628269720,0.32796682,56816.0,56804.0,0.003634]
[1725628269983,0.176036,56807.0,56804.0,0.003634]
[1725628270235,0.180027,56810.0,56804.0,0.003634]
[1725628270459,0.180027,56810.0,56806.0,0.176036]
[1725628270687,0.176027,56810.0,56806.0,0.176036]
[1725628270910,0.002,56808.0,56806.0,0.176036]
[1725628271153,0.176021,56812.0,56808.0,0.17603]
[1725628271389,0.176021,56812.0,56805.0,0.35208]
[1725628271390,0.352035,56813.0,56805.0,0.35208]
[1725628271605,0.0275879,56816.0,56809.0,0.528084]
[1725628271606,0.004,56810.0,56809.0,0.528084]
[1725628271822,0.004,56810.0,56809.0,0.90180445]
[1725628272267,0.004,56810.0,56809.0,1.25386045]
[1725628273005,0.0275879,56816.0,56809.0,0.37372045]
[1725628273221,0.0275879,56816.0,56815.0,0.477009]
[1725628273438,0.175992,56821.0,56817.0,0.176002]
[1725628273657,0.36771591,56835.0,56815.0,0.67428485]
[1725628273658,0.02758484,56826.0,56821.0,0.351977]
[1725628273876,0.175985,56823.0,56815.0,0.301]
[1725628274096,0.02758484,56826.0,56819.0,0.351991]
[1725628274303,0.175983,56824.0,56821.0,0.17599]
[1725628274939,0.175985,56823.0,56822.0,0.01044301]
[1725628275152,0.527955,56823.0,56822.0,0.01044301]
[1725628275380,0.17599,56822.0,56818.0,0.175999]
[1725628275627,0.17599,56822.0,56819.0,0.175996]
[1725628275833,0.02758484,56826.0,56821.0,0.180988]
[1725628276064,0.02758484,56826.0,56821.0,0.005]
[1725628276290,0.527964,56822.0,56821.0,0.005]
[1725628276713,0.175988,56822.0,56821.0,0.005]
[1725628276970,0.527964,56822.0,56821.0,0.005]
[1725628277657,0.527964,56822.0,56821.0,0.009]
[1725628277887,0.175988,56822.0,56821.0,0.004]
[1725628278288,0.527964,56822.0,56821.0,0.004]
[1725628278985,0.527964,56822.0,56821.0,0.011]
[1725628279614,1.231916,56822.0,56821.0,0.011]
[1725628279837,1.48606778,56822.0,56821.0,0.02145523]
[1725628280073,1.04334,56822.0,56821.0,0.011]
[1725628280968,0.175995,56820.0,56813.0,0.352029]
[1725628281237,0.351976,56822.0,56821.0,0.01045523]
[1725628281238,0.004,56822.0,56821.0,0.01045523]
[1725628281463,0.004,56822.0,56821.0,1.86670369]
[1725628281464,0.008,56822.0,56821.0,1.86670369]
[1725628281706,0.008,56822.0,56821.0,2.26214092]
[1725628281937,0.008,56822.0,56821.0,2.63407224]
[1725628281938,0.004,56822.0,56821.0,2.63407224]
[1725628282186,0.004,56822.0,56821.0,2.79377224]
[1725628282421,0.004,56822.0,56821.0,2.89377224]
[1725628282929,0.52650515,56847.0,56837.0,0.17594]
[1725628283171,0.175927,56842.0,56838.0,0.175936]
[1725628283411,0.175937,56839.0,56838.0,0.0102477]
[1725628283641,0.1337,56849.0,56838.0,0.0102477]
[1725628283642,0.351846,56843.0,56838.0,0.0102477]
[1725628283870,0.02757529,56839.0,56835.0,0.351891]
[1725628284322,0.02757529,56839.0,56838.0,0.175938]
[1725628284820,0.02757529,56839.0,56838.0,0.001]
[1725628285036,0.02757529,56839.0,56838.0,0.176938]
[1725628285293,0.02857529,56839.0,56838.0,0.176938]
[1725628285733,0.02757529,56839.0,56838.0,0.176938]
[1725628285969,0.02757529,56839.0,56838.0,0.001]
[1725628286189,0.71448129,56839.0,56838.0,0.01]
[1725628286416,1.06635229,56839.0,56838.0,0.01]
[1725628286630,1.06635229,56839.0,56838.0,0.009]
[1725628287280,1.06716829,56839.0,56838.0,0.009]
[1725628287489,0.175944,56836.0,56835.0,0.005]
[1725628287763,0.351888,56837.0,56829.0,0.351928]
[1725628287991,0.351888,56837.0,56832.0,0.175956]
[1725628288193,0.175946,56836.0,56832.0,0.175956]
[1725628288630,0.175946,56836.0,56835.0,0.004]
[1725628289288,0.175938,56838.0,56834.0,0.175949]
[1725628289508,0.175938,56838.0,56833.0,0.351907]
[1725628289745,0.175942,56837.0,56832.0,0.351909]
[1725628290420,0.352689,56839.0,56832.0,0.351909]
[1725628290421,0.352689,56839.0,56834.0,0.175949]
[1725628290631,0.176939,56838.0,56834.0,0.17595]
[1725628290840,0.175939,56838.0,56834.0,0.17595]
[1725628291099,0.352689,56839.0,56838.0,0.175938]
[1725628291100,0.000816,56839.0,56838.0,0.175938]
[1725628291349,0.000816,56839.0,56838.0,1.18543021]
[1725628291814,0.02838947,56839.0,56838.0,1.18543021]
[1725628292255,0.02838947,56839.0,56828.0,0.351937]
[1725628292256,0.02838947,56839.0,56830.0,0.1516]
[1725628292490,0.02838947,56839.0,56831.0,0.351916]
[1725628292491,0.351878,56838.0,56831.0,0.351916]
[1725628292706,0.02838947,56839.0,56834.0,0.175949]
[1725628292707,0.175941,56837.0,56834.0,0.175949]
[1725628292988,0.02838947,56839.0,56830.0,0.1516]
[1725628292989,0.175939,56838.0,56830.0,0.1516]
[1725628293224,0.175939,56838.0,56834.0,0.175949]
[1725628293465,0.175944,56837.0,56833.0,0.175951]
[1725628293691,0.175944,56836.0,56833.0,0.175954]
[1725628294191,0.001,56838.0,56832.0,0.351909]
[1725628294405,0.001,56838.0,56837.0,0.175941]
[1725628294635,0.001816,56839.0,56838.0,0.536815]
[1725628294866,0.001816,56839.0,56838.0,1.04146362]
[1725628295089,0.001816,56839.0,56838.0,1.56778832]
[1725628295320,0.000816,56839.0,56838.0,1.55878832]
[1725628296732,0.000816,56839.0,56838.0,1.20691132]
[1725628297202,0.02838925,56839.0,56838.0,1.55878832]
[1725628297433,0.02938925,56839.0,56838.0,1.57278832]
[1725628297656,0.02938925,56839.0,56838.0,2.0436782]
[1725628297894,0.02838925,56839.0,56838.0,2.3865552]
[1725628298137,0.02838925,56839.0,56838.0,2.90959068]
[1725628298363,0.002816,56839.0,56838.0,2.92159068]
[1725628298811,0.001816,56839.0,56838.0,2.91159068]
[1725628299271,0.001816,56839.0,56838.0,2.5365552]
[1725628299725,0.000816,56839.0,56838.0,2.5295552]
[1725628300172,0.000816,56839.0,56838.0,2.5435552]
[1725628300388,0.000816,56839.0,56838.0,2.5295552]
[1725628300694,0.000816,56839.0,56838.0,2.5451872]
[1725628300941,0.38011318,56863.0,56847.0,0.351818]
[1725628301172,0.527614,56860.0,56855.0,0.175883]
[1725628301409,0.02838518,56863.0,56853.0,0.1336]
[1725628301619,0.02838518,56863.0,56858.0,0.35175]
[1725628301854,0.000816,56863.0,56860.0,0.175867]
[1725628302087,0.000816,56863.0,56859.0,0.351744]
[1725628302088,0.000816,56863.0,56862.0,0.175864]
[1725628302316,0.000816,56863.0,56862.0,0.527592]
[1725628302537,0.000816,56863.0,56862.0,0.53754692]
[1725628303428,0.000816,56863.0,56862.0,0.18581892]
[1725628303849,0.000816,56863.0,56862.0,0.53754692]
[1725628304063,0.000816,56863.0,56862.0,0.00995492]
[1725628304298,0.0283805,56863.0,56862.0,0.01595492]
[1725628304516,0.0283805,56863.0,56862.0,0.006]
[1725628304734,0.0283805,56863.0,56862.0,0.19181892]
[1725628304962,0.000816,56863.0,56862.0,0.190864]
[1725628305178,0.000816,56863.0,56862.0,0.20081892]
[1725628305834,0.000816,56863.0,56862.0,0.55254692]
[1725628306071,0.000816,56863.0,56862.0,0.90427492]
[1725628306309,0.000816,56863.0,56862.0,2.04934626]
[1725628306553,0.000816,56863.0,56862.0,2.40107426]
[1725628307317,0.000816,56863.0,56862.0,2.39507426]
[1725628307551,0.000816,56863.0,56862.0,2.40107426]
[1725628307775,0.000816,56863.0,56862.0,2.39507426]
[1725628308005,0.000816,56863.0,56862.0,2.38607426]
[1725628308274,0.000816,56863.0,56862.0,2.40907426]
[1725628308275,0.0283763,56863.0,56862.0,2.40907426]
[1725628308736,0.0283763,56863.0,56862.0,0.58250038]
[1725628308962,0.0283763,56863.0,56862.0,0.20881892]
[1725628309619,0.0283763,56863.0,56862.0,0.56054692]
[1725628309844,0.0283763,56863.0,56862.0,0.55154692]
[1725628310274,0.0283763,56863.0,56862.0,0.56554692]
[1725628310493,0.0283763,56863.0,56862.0,0.55154692]
[1725628310702,0.0283763,56863.0,56862.0,0.56154692]
[1725628310914,0.0283763,56863.0,56862.0,0.54754692]
[1725628311125,0.0283763,56863.0,56862.0,0.55954692]
[1725628311344,0.0283763,56863.0,56862.0,0.20781892]
[1725628311584,0.0283763,56863.0,56862.0,0.55954692]
[1725628312726,0.0283763,56863.0,56862.0,0.20781892]
[1725628312962,1.5495033,56863.0,56862.0,0.03195492]
[1725628313181,1.49816022,56863.0,56862.0,0.03195492]
[1725628313465,1.2977813,56863.0,56862.0,0.022]
[1725628313693,1.270221,56863.0,56862.0,0.022]
[1725628313913,1.270221,56863.0,56862.0,0.01]
[1725628314139,0.527592,56862.0,56861.0,0.001632]
[1725628314361,0.87932,56862.0,56861.0,0.001632]
[1725628314607,0.527592,56862.0,56861.0,0.001632]
[1725628315257,0.90688674,56862.0,56861.0,0.001632]
[1725628316429,0.55515874,56862.0,56861.0,0.001632]
[1725628316880,0.55615874,56862.0,56861.0,0.001632]
[1725628317107,0.90788674,56862.0,56861.0,0.001632]
[1725628317329,0.91088674,56862.0,56861.0,0.001632]
[1725628317975,0.55915874,56862.0,56861.0,0.001632]
[1725628318194,0.91088674,56862.0,56861.0,0.001632]
[1725628318843,0.55915874,56862.0,56861.0,0.001632]
[1725628319346,0.55915874,56862.0,56861.0,0.01159912]
[1725628319614,0.91088674,56862.0,56861.0,0.001632]
[1725628319831,0.90988674,56862.0,56861.0,0.001632]
[1725628320050,0.528592,56862.0,56861.0,0.001632]
[1725628320266,0.88032,56862.0,56861.0,0.001632]
[1725628320487,0.88232,56862.0,56861.0,0.001632]
[1725628320698,0.87932,56862.0,56861.0,0.001632]
[1725628320908,0.88132,56862.0,56861.0,0.001632]
[1725628321777,0.529592,56862.0,56861.0,0.001632]
[1725628322009,0.002,56862.0,56861.0,0.337499]
[1725628322297,0.02040008,56862.0,56861.0,1.73112823]
[1725628322540,0.02040008,56862.0,56861.0,2.09286223]
[1725628322764,0.02040008,56862.0,56861.0,2.58754555]
[1725628322993,0.0038484,56862.0,56861.0,2.58754555]
[1725628323209,0.000816,56863.0,56862.0,1.96645332]
[1725628323427,0.000816,56863.0,56862.0,2.23089319]
[1725628325075,0.000816,56863.0,56862.0,2.22189319]
[1725628326481,0.000816,56863.0,56862.0,2.20789319]
[1725628326994,0.000816,56863.0,56862.0,2.24489319]
[1725628327232,0.000816,56863.0,56862.0,2.23089319]
[1725628327469,0.000816,56863.0,56862.0,2.24489319]
[1725628327693,0.000816,56863.0,56862.0,2.59662119]
[1725628328403,0.000816,56863.0,56862.0,2.58262119]
[1725628328625,0.000816,56863.0,56862.0,2.61062119]
[1725628329107,0.000816,56863.0,56862.0,2.23694387]
[1725628329343,0.000816,56863.0,56862.0,2.23389319]
[1725628329570,0.000816,56863.0,56862.0,2.23589319]
[1725628330066,0.000816,56863.0,56862.0,2.23389319]
[1725628330300,0.000816,56863.0,56862.0,2.20589319]
[1725628330547,0.000816,56863.0,56862.0,2.21989319]
[1725628330799,0.000816,56863.0,56862.0,2.23389319]
[1725628331031,0.000816,56863.0,56862.0,2.20589319]
[1725628331464,0.000816,56863.0,56862.0,2.23389319]
[1725628331714,0.000816,56863.0,56862.0,2.21989319]
[1725628331935,0.000816,56863.0,56862.0,1.39110491]
[1725628332157,0.000816,56863.0,56862.0,0.04685691]
[1725628332371,0.000816,56863.0,56862.0,0.20872091]
[1725628332623,0.000816,56863.0,56862.0,0.56044891]
[1725628333068,0.176677,56863.0,56862.0,0.00995492]
[1725628333514,0.528399,56863.0,56862.0,0.014]
[1725628333732,0.528399,56863.0,56862.0,0.02395492]
[1725628333733,1.032721,56863.0,56862.0,0.02395492]
[1725628334211,1.032721,56863.0,56861.0,0.101632]
[1725628334212,0.87932,56862.0,56861.0,0.101632]
[1725628335201,1.231048,56862.0,56861.0,0.101632]
[1725628335438,0.87932,56862.0,56861.0,0.101632]
[1725628335651,0.88132,56862.0,56861.0,0.101632]
[1725628335876,1.233048,56862.0,56861.0,0.101632]
[1725628336544,0.88132,56862.0,56861.0,0.101632]
[1725628337931,1.232048,56862.0,56861.0,0.102632]
[1725628338164,1.91022071,56862.0,56861.0,0.101632]
[1725628338388,2.45701378,56862.0,56861.0,0.101632]
[1725628338606,2.45801378,56862.0,56861.0,0.101632]
[1725628339409,2.46001378,56862.0,56861.0,0.101632]
[1725628339783,2.47001378,56862.0,56861.0,0.08508032]
[1725628339999,2.49301378,56862.0,56861.0,0.08508032]
[1725628340196,2.48301378,56862.0,56861.0,0.08508032]
[1725628340402,2.49301378,56862.0,56861.0,0.08508032]
[1725628340814,2.49201378,56862.0,56861.0,0.08508032]
[1725628341190,2.33891999,56862.0,56861.0,0.08608032]
[1725628341408,2.40953095,56862.0,56861.0,0.08708032]
[1725628341657,2.40853095,56862.0,56861.0,0.08608032]
[1725628341886,2.41953095,56862.0,56861.0,0.08708032]
[1725628342100,2.41953095,56862.0,56861.0,0.08608032]
[1725628342101,2.40753095,56862.0,56861.0,0.08608032]
[1725628342327,2.38453095,56862.0,56861.0,0.08608032]
[1725628342546,2.30591999,56862.0,56861.0,0.08608032]
[1725628342762,2.30491999,56862.0,56861.0,0.08608032]
[1725628342981,2.48048025,56862.0,56861.0,0.08608032]
[1725628343231,2.00574201,56862.0,56861.0,0.08608032]
[1725628343453,1.65281307,56862.0,56861.0,0.08608032]
[1725628344141,1.65081307,56862.0,56861.0,0.08508032]
[1725628344607,1.31908507,56862.0,56861.0,0.08708032]
[1725628344848,1.67081307,56862.0,56861.0,0.08708032]
[1725628345074,1.68693585,56862.0,56861.0,0.08508032]
[1725628345292,1.69693585,56862.0,56861.0,0.08608032]
[1725628345637,2.05466385,56862.0,56861.0,0.08708032]
[1725628345652,2.13527481,56862.0,56861.0,0.08708032]
[1725628345874,2.16227481,56862.0,56861.0,0.08608032]
[1725628346106,2.15248996,56862.0,56861.0,0.08508032]
[1725628346309,2.15847808,56862.0,56861.0,0.08608032]
[1725628347394,2.07966385,56862.0,56861.0,0.08771232]
[1725628347608,2.06766385,56862.0,56861.0,0.08771232]
[1725628347835,1.65562907,56862.0,56861.0,0.08671232]
[1725628348243,1.66162907,56862.0,56861.0,0.08771232]
[1725628348463,1.65162907,56862.0,56861.0,0.08671232]
[1725628348689,1.65562907,56862.0,56861.0,0.08771232]
[1725628348904,1.66762907,56862.0,56861.0,0.08871232]
[1725628349124,1.66362907,56862.0,56861.0,0.08671232]
[1725628349377,1.66362907,56862.0,56861.0,0.08771232]
[1725628349580,1.67562907,56862.0,56861.0,0.08771232]
[1725628350449,1.85118933,56862.0,56861.0,0.08771232]
[1725628350665,1.85318933,56862.0,56861.0,0.08771232]
[1725628350867,1.67562907,56862.0,56861.0,0.08771232]
[1725628353784,2.02735707,56862.0,56861.0,0.08771232]
[1725628353997,2.06035707,56862.0,56861.0,0.08771232]
[1725628354235,2.05235707,56862.0,56861.0,0.08771232]
[1725628354680,1.69862907,56862.0,56861.0,0.08771232]
[1725628355098,1.67562907,56862.0,56861.0,0.08771232]
[1725628355714,1.67762907,56862.0,56861.0,0.08771232]
[1725628356487,2.05235707,56862.0,56861.0,0.08771232]
[1725628356883,2.05035707,56862.0,56861.0,0.08771232]
[1725628357896,1.67562907,56862.0,56861.0,0.08771232]
[1725628359095,2.19162224,56862.0,56861.0,0.08771232]
[1725628359330,2.21462224,56862.0,56861.0,0.08771232]
[1725628360307,2.20262224,56862.0,56861.0,0.08771232]
[1725628360527,2.02735707,56862.0,56861.0,0.08771232]
[1725628363570,1.38342907,56862.0,56861.0,0.08771232]
[1725628365437,1.73515707,56862.0,56861.0,0.08771232]
[1725628365721,1.71692907,56862.0,56861.0,0.08771232]
[1725628365946,1.231548,56839.0,56835.0,0.1495]
[1725628366207,1.231548,56839.0,56825.0,0.351955]
[1725628366208,1.45659528,56839.0,56832.0,0.2783]
[1725628366677,1.10472428,56839.0,56832.0,0.2783]
[1725628367898,0.879677,56839.0,56832.0,0.2783]
[1725628368872,0.885677,56839.0,56832.0,0.2783]
[1725628369086,0.881677,56839.0,56832.0,0.2783]
[1725628369336,0.879677,56839.0,56832.0,0.2783]
[1725628369570,0.880677,56839.0,56832.0,0.2783]
[1725628370252,0.528806,56839.0,56832.0,0.454256]
[1725628370489,0.176935,56839.0,56838.0,0.0118797]
[1725628370703,0.001,56839.0,56838.0,0.001632]
[1725628370914,0.176935,56839.0,56838.0,0.0118797]
[1725628371160,0.176935,56839.0,56838.0,0.001632]
[1725628371386,0.001,56839.0,56838.0,0.0118797]
[1725628371607,0.001,56839.0,56838.0,0.32997]
[1725628371838,0.30025388,56856.0,56840.0,0.175931]
[1725628372078,0.30025388,56856.0,56841.0,0.18613909]
[1725628372079,0.175917,56845.0,56841.0,0.18613909]
[1725628372298,0.02757331,56848.0,56842.0,0.175923]
[1725628372514,0.02757331,56848.0,56843.0,0.326321]
[1725628372771,0.02757331,56848.0,56844.0,0.175918]
[1725628372989,0.02757331,56848.0,56843.0,0.51242968]
[1725628373226,0.17591,56847.0,56845.0,0.01016228]
[1725628373438,0.02757331,56848.0,56846.0,0.13425008]
[1725628373898,0.351797,56851.0,56846.0,0.13425008]
[1725628374132,0.175908,56848.0,56846.0,0.13425008]
[1725628374351,0.009,56848.0,56846.0,0.13425008]
[1725628374538,0.175905,56849.0,56846.0,0.13425008]
[1725628375015,0.009,56848.0,56847.0,0.684431]
[1725628375252,0.009,56848.0,56847.0,1.0693172]
[1725628375467,0.014,56848.0,56847.0,0.7174962]
[1725628375691,0.014,56848.0,56847.0,0.3656752]
[1725628375913,0.009,56848.0,56847.0,0.7174962]
[1725628376186,0.02756923,56849.0,56848.0,0.175907]
[1725628376404,0.02756923,56849.0,56848.0,0.527722]
[1725628376633,0.02756923,56849.0,56848.0,0.18603268]
[1725628377363,0.02756923,56849.0,56848.0,0.53784768]
[1725628377818,0.03756923,56849.0,56848.0,0.53784768]
[1725628378256,0.02756923,56849.0,56848.0,0.53784768]
[1725628378475,0.02856923,56849.0,56848.0,0.53884768]